bitfinex/quotes_SOLUSD_20250814
["timestamp","ask_amount","ask_price","bid_price","bid_amount"]
[1755138717766,13.47258118,202.47,202.45,35.87]
[1755138717970,13.47258118,202.47,202.36,71.00128036]
[1755138717971,13.47258118,202.47,202.46,35.16]
[1755138718195,3.67605695,202.47,202.46,35.16]
[1755138718865,17.14863813,202.48,202.46,35.16]
[1755138719189,3.67605695,202.47,202.46,35.87]
[1755138719570,3.67605695,202.48,202.46,35.87]
[1755138719769,3.67605695,202.47,202.46,35.87]
[1755138719960,3.67605695,202.48,202.46,35.16]
[1755138720163,3.67605695,202.47,202.46,35.16]
[1755138722396,3.67605695,202.48,202.46,35.16]
[1755138722567,3.67605695,202.47,202.46,35.16]
[1755138722768,17.14863813,202.47,202.46,35.16]
[1755138723008,3.67605695,202.47,202.46,35.16]
[1755138723673,3.67605695,202.48,202.46,35.16]
[1755138723874,3.67605695,202.47,202.46,35.16]
[1755138724191,3.67605695,202.49,202.46,35.83]
[1755138724392,3.67605695,202.49,202.47,0.67]
[1755138724688,13.47258118,202.52,202.46,240.96128036]
[1755138724689,13.47258118,202.52,202.49,67.32522341]
[1755138724889,13.47258118,202.53,202.5,35.16]
[1755138725076,13.47258118,202.53,202.51,35.5]
[1755138725273,13.47258118,202.52,202.51,35.5]
[1755138725481,0.69,202.55,202.51,102.82522341]
[1755138725773,5.54389788,202.7,202.52,14.14258118]
[1755138725774,0.69,202.58,202.52,14.14258118]
[1755138725983,13.47258118,202.57,202.53,35.14]
[1755138726705,13.47258118,202.54,202.53,35.14]
[1755138726879,14.16258118,202.54,202.53,35.14]
[1755138727283,14.16258118,202.54,202.43,13.47258118]
[1755138727284,14.16258118,202.54,202.49,67.32522341]
[1755138727589,0.69,202.53,202.5,35.14]
[1755138727981,0.69,202.52,202.5,35.14]
[1755138728177,0.69,202.51,202.5,35.14]
[1755138728578,14.16258118,202.51,202.5,35.14]
[1755138730397,14.16258118,202.51,202.44,67.32522341]
[1755138730598,13.47258118,202.45,202.44,67.32522341]
[1755138730899,14.16258118,202.45,202.38,67.99522341]
[1755138731075,13.47258118,202.39,202.38,67.99522341]
[1755138731485,0.69,202.45,202.38,67.99522341]
[1755138731694,13.47258118,202.4,202.39,35.81]
[1755138731896,13.47258118,202.4,202.39,103.13522341]
[1755138732589,13.47258118,202.44,202.39,237.93522341]
[1755138732781,0.69,202.51,202.4,0.67]
[1755138733096,13.47258118,202.42,202.4,202.79522341]
[1755138733303,13.47258118,202.41,202.4,67.32522341]
[1755138733482,13.47258118,202.41,202.4,102.46522341]
[1755138733993,13.47258118,202.41,202.4,103.13522341]
[1755138734189,13.47258118,202.43,202.4,103.13522341]
[1755138734390,13.47258118,202.43,202.41,0.67]
[1755138734573,13.47258118,202.43,202.42,35.14]
[1755138734771,13.47258118,202.43,202.42,0.67]
[1755138734994,13.47258118,202.43,202.42,106.81]
[1755138735382,13.47258118,202.45,202.42,106.81]
[1755138735584,13.47258118,202.45,202.43,0.67]
[1755138735786,13.47258118,202.45,202.44,35.81]
[1755138735991,0.69,202.54,202.44,35.81]
[1755138736201,13.47258118,202.49,202.44,102.46522341]
[1755138736405,13.47258118,202.5,202.45,0.67]
[1755138736572,3.68361473,202.49,202.46,48.61258118]
[1755138736885,3.68361473,202.48,202.47,0.67]
[1755138737085,3.68361473,202.51,202.47,35.81]
[1755138737404,3.68361473,202.5,202.49,13.47258118]
[1755138737577,3.68361473,202.5,202.49,49.28258118]
[1755138737905,3.68361473,202.54,202.49,49.28258118]
[1755138738115,3.68361473,202.53,202.49,48.61258118]
[1755138738278,3.68361473,202.52,202.5,0.67]
[1755138738481,13.47258118,202.56,202.51,35.16]
[1755138738677,17.15416239,202.55,202.52,0.67]
[1755138739000,3.68158121,202.54,202.53,35.83]
[1755138739411,3.68158121,202.55,202.53,35.83]
[1755138739611,3.68158121,202.55,202.54,0.67]
[1755138740295,3.68158121,202.56,202.54,0.67]
[1755138740603,3.68158121,202.56,202.55,35.81]
[1755138741178,13.47258118,202.72,202.55,35.81]
[1755138741179,13.47258118,202.59,202.55,35.81]
[1755138741488,3.6784068,202.58,202.56,0.67]
[1755138741802,17.12575152,202.58,202.57,35.16]
[1755138744195,3.6784068,202.58,202.57,35.16]
[1755138744499,3.6784068,202.59,202.57,35.16]
[1755138744799,17.12575152,202.59,202.57,35.16]
[1755138745105,3.6784068,202.58,202.57,35.16]
[1755138745309,3.6784068,202.58,202.57,106.12]
[1755138745486,13.44734472,202.59,202.58,63.64681661]
[1755138745987,14.13734472,202.59,202.57,70.96]
[1755138746300,2.48626609,202.66,202.58,35.14]
[1755138746301,0.69,202.62,202.58,35.14]
[1755138747398,13.44734472,202.59,202.58,35.14]
[1755138747804,13.44734472,202.6,202.58,35.81]
[1755138748025,13.44734472,202.62,202.59,0.67]
[1755138748307,13.44734472,202.62,202.59,64.31681661]
[1755138748489,13.44734472,202.63,202.6,0.67]
[1755138748695,13.44734472,202.63,202.61,35.14]
[1755138748898,13.44734472,202.63,202.61,35.81]
[1755138749102,0.69,202.67,202.61,35.81]
[1755138749408,13.44734472,202.64,202.62,0.67]
[1755138749702,13.44734472,202.63,202.61,98.78681661]
[1755138749886,13.44734472,202.62,202.61,63.64681661]
[1755138750086,13.44734472,202.62,202.61,98.78681661]
[1755138750403,13.44734472,202.62,202.61,63.64681661]
[1755138750608,13.44734472,202.62,202.61,98.78681661]
[1755138751407,13.44734472,202.62,202.61,99.45681661]
[1755138751606,13.44734472,202.63,202.61,99.45681661]
[1755138751911,0.72,202.69,202.62,0.67]
[1755138752104,13.44734472,202.63,202.62,64.31681661]
[1755138752309,13.44734472,202.65,202.62,64.31681661]
[1755138752508,13.44734472,202.65,202.63,0.67]
[1755138752687,3.85685432,202.75,202.64,35.12]
[1755138752891,4.9314732,202.78,202.63,63.64681661]
[1755138752892,13.44734472,202.65,202.63,63.64681661]
[1755138753089,0.72,202.65,202.64,35.12]
[1755138753301,0.72,202.67,202.64,35.12]
[1755138753502,0.72,202.69,202.64,35.12]
[1755138753700,0.72,202.69,202.64,35.79]
[1755138754204,13.44734472,202.65,202.64,35.12]
[1755138754407,13.44734472,202.65,202.64,0.67]
[1755138754604,13.44734472,202.65,202.64,35.79]
[1755138754803,13.44734472,202.65,202.64,35.12]
[1755138755003,13.44734472,202.65,202.64,106.08]
[1755138756399,14.16734472,202.65,202.64,70.96]
[1755138756603,13.44734472,202.65,202.64,106.08]
[1755138757712,13.44734472,202.65,202.64,70.96]
[1755138757914,13.44734472,202.65,202.64,106.08]
[1755138758615,8.91224855,202.65,202.64,169.72681661]
[1755138758824,8.19224855,202.65,202.64,169.72681661]
[1755138759001,8.19224855,202.65,202.64,134.60681661]
[1755138759202,8.19224855,202.65,202.64,134.24681661]
[1755138759716,8.19224855,202.65,202.64,70.6]
[1755138759914,8.19224855,202.65,202.64,35.12]
[1755138763308,8.19224855,202.65,202.64,35.79]
[1755138763619,8.19224855,202.65,202.64,35.12]
[1755138763822,8.19224855,202.65,202.64,35.79]
[1755138764617,8.19224855,202.66,202.64,99.43681661]
[1755138764801,8.19224855,202.67,202.65,0.67]
[1755138765119,8.19224855,202.71,202.66,106.08]
[1755138765300,8.19224855,202.71,202.67,0.67]
[1755138765495,8.19224855,202.71,202.68,35.12]
[1755138765700,8.19224855,202.7,202.69,0.67]
[1755138766101,0.72,202.76,202.69,0.67]
[1755138766300,3.65104091,202.75,202.7,35.12]
[1755138766527,8.19224855,202.71,202.7,35.79]
[1755138767099,0.72,202.76,202.7,35.79]
[1755138767324,8.19224855,202.74,202.71,0.67]
[1755138767503,8.19224855,202.74,202.72,35.12]
[1755138767704,8.19224855,202.74,202.73,0.67]
[1755138771926,8.91224855,202.74,202.73,35.1]
[1755138772326,8.91224855,202.74,202.68,134.8]
[1755138772327,8.91224855,202.74,202.68,198.44681661]
[1755138772533,0.72,202.74,202.69,35.1]
[1755138772726,8.19224855,202.7,202.69,35.1]
[1755138772926,8.19224855,202.7,202.69,99.41681661]
[1755138773122,8.19224855,202.8,202.69,99.41681661]
[1755138773332,8.19224855,202.8,202.7,0.67]
[1755138773531,8.19224855,202.8,202.71,35.1]
[1755138773712,8.19224855,202.79,202.72,0.67]
[1755138773911,8.19224855,202.79,202.73,35.1]
[1755138774140,8.19224855,202.79,202.74,0.67]
[1755138774428,3.99279605,202.86,202.74,0.67]
[1755138774429,0.72,202.86,202.75,35.1]
[1755138774736,8.19224855,202.84,202.76,0.67]
[1755138774934,8.19224855,202.84,202.77,70.56]
[1755138775132,8.19224855,202.84,202.78,0.67]
[1755138775332,8.19224855,202.83,202.79,35.1]
[1755138775551,8.19224855,202.83,202.8,0.67]
[1755138775724,8.19224855,202.83,202.81,35.77]
[1755138776333,3.86799649,202.9,202.77,64.31681661]
[1755138776334,8.19224855,202.82,202.77,64.31681661]
[1755138776535,8.19224855,202.79,202.78,35.77]
[1755138776714,13.42004459,202.79,202.78,35.77]
[1755138776910,0.72,202.84,202.78,0.67]
[1755138777222,3.63861593,202.83,202.79,35.1]
[1755138777538,13.42004459,202.8,202.79,35.1]
[1755138777751,13.42004459,202.8,202.77,63.64681661]
[1755138777752,14.14004459,202.8,202.77,63.64681661]
[1755138777917,0.72,202.79,202.78,35.1]
[1755138778117,14.14004459,202.79,202.78,35.1]
[1755138778436,17.78193552,202.79,202.78,35.1]
[1755138778626,17.06193552,202.79,202.78,35.1]
[1755138778821,13.42004459,202.79,202.78,35.1]
[1755138779132,17.06132952,202.79,202.78,35.1]
[1755138779714,17.78132952,202.79,202.78,35.1]
[1755138780345,17.78132952,202.79,202.7,0.7]
[1755138780542,13.42004459,202.71,202.7,199.14681661]
[1755138780748,13.42004459,202.71,202.7,185.02677202]
[1755138780924,13.42004459,202.71,202.7,220.12677202]
[1755138782048,13.42004459,202.71,202.7,220.82677202]
[1755138782548,13.42004459,202.71,202.7,220.12677202]
[1755138783940,17.07184965,202.71,202.7,217.79987202]
[1755138784137,17.07184965,202.71,202.7,85.32677202]
[1755138784546,13.42004459,202.71,202.7,86.02677202]
[1755138785052,13.42004459,202.71,202.7,156.90677202]
[1755138786032,1.0,223.45,202.71,50.22677202]
[1755138786033,0.41,202.83,202.71,50.22677202]
[1755138786245,13.42004459,202.8,202.72,35.8]
[1755138786424,3.65340544,202.82,202.73,0.7]
[1755138786425,13.42004459,202.75,202.73,0.7]
[1755138786740,30.90404878,202.74,202.63,0.7]
[1755138786942,13.42004459,202.64,202.63,0.7]
[1755138787259,13.42004459,202.64,202.63,35.8]
[1755138788251,13.42004459,202.64,202.63,0.7]
[1755138788423,13.42004459,202.64,202.63,35.78]
[1755138788618,17.07717958,202.64,202.63,35.78]
[1755138788844,3.65713499,202.64,202.63,35.78]
[1755138789153,13.42004459,202.68,202.63,35.78]
[1755138789333,13.42004459,202.64,202.63,35.08]
[1755138789728,0.41,202.71,202.63,35.08]
[1755138789945,13.42004459,202.68,202.64,0.7]
[1755138790148,13.42004459,202.71,202.64,0.7]
[1755138790344,3.65786557,202.7,202.64,0.7]
[1755138790730,17.07791016,202.7,202.64,0.7]
[1755138790946,3.65786557,202.69,202.64,0.7]
[1755138791339,13.42004459,202.67,202.65,0.7]
[1755138791842,13.42004459,202.67,202.66,35.1]
[1755138792040,13.42004459,202.68,202.66,35.8]
[1755138792243,13.42004459,202.68,202.67,0.7]
[1755138792551,17.08167718,202.68,202.67,0.7]
[1755138792755,17.0816765,202.68,202.67,0.7]
[1755138793345,13.42004459,202.7,202.67,0.7]
[1755138793647,13.42004459,202.68,202.66,35.1]
[1755138793849,13.42004459,202.68,202.67,0.7]
[1755138794053,13.42004459,202.68,202.67,50.22677202]
[1755138794535,17.08358336,202.68,202.67,50.22677202]
[1755138794934,17.08358336,202.68,202.67,121.14677202]
[1755138795335,3.66353877,202.68,202.67,121.84677202]
[1755138795649,13.42004459,202.7,202.67,121.84677202]
[1755138795848,3.66392095,202.69,202.67,121.84677202]
[1755138796756,13.42004459,202.69,202.67,121.84677202]
[1755138798349,13.42004459,202.69,202.67,121.14677202]
[1755138798548,0.72,202.73,202.67,121.14677202]
[1755138798760,13.42004459,202.69,202.67,121.14677202]
[1755138798941,13.42004459,202.69,202.67,86.38677202]
[1755138799139,13.42004459,202.69,202.67,50.92677202]
[1755138799335,0.72,202.73,202.67,50.92677202]
[1755138799536,13.42004459,202.68,202.67,50.92677202]
[1755138799755,13.42004459,202.68,202.67,50.22677202]
[1755138799962,17.80714155,202.68,202.67,85.32677202]
[1755138800340,17.08714155,202.68,202.67,85.32677202]
[1755138801544,17.80714155,202.68,202.67,85.32677202]
[1755138801856,17.08714155,202.68,202.67,85.32677202]
[1755138802254,13.42004459,202.69,202.67,86.02677202]
[1755138802557,17.08910636,202.68,202.67,85.32677202]
[1755138802856,17.80910822,202.68,202.67,85.32677202]
[1755138804535,17.08910822,202.68,202.67,85.32677202]
[1755138805058,17.08910822,202.68,202.67,156.24677202]
[1755138805760,17.80910822,202.68,202.67,156.24677202]
[1755138805934,17.08910822,202.68,202.67,156.24677202]
[1755138808658,17.08910822,202.68,202.67,85.68677202]
[1755138808858,17.08910822,202.68,202.67,120.78677202]
[1755138809656,3.66906363,202.68,202.67,120.78677202]
[1755138810767,3.66906363,202.68,202.67,85.32677202]
[1755138811948,3.66906363,202.7,202.67,85.32677202]
[1755138812272,13.42004459,202.68,202.67,86.04677202]
[1755138812465,17.08910822,202.68,202.67,86.04677202]
[1755138812971,3.66906363,202.68,202.67,86.04677202]
[1755138813263,17.08910822,202.68,202.67,86.04677202]
[1755138813565,13.42004459,202.68,202.67,86.04677202]
[1755138814955,13.42004459,202.68,202.67,156.96677202]
[1755138815160,17.09362191,202.68,202.67,156.96677202]
[1755138815367,13.42004459,202.68,202.67,156.96677202]
[1755138816768,0.7,202.74,202.69,36.80672743]
[1755138816950,4.37343843,202.73,202.7,35.08]
[1755138817147,4.37343843,202.72,202.7,35.08]
[1755138817350,3.67343843,202.71,202.7,35.08]
[1755138818052,17.09348302,202.71,202.7,35.08]
[1755138819265,3.67343843,202.71,202.7,35.08]
[1755138819466,17.09348302,202.71,202.7,35.08]
[1755138822253,17.10183655,202.71,202.7,35.08]
[1755138822453,17.10183655,202.71,202.7,35.8]
[1755138822766,0.7,202.8,202.7,55.50489088]
[1755138822969,13.42004459,202.77,202.71,0.72]
[1755138823271,13.42004459,202.77,202.72,35.08]
[1755138823448,13.42004459,202.77,202.73,0.72]
[1755138823652,13.42004459,202.76,202.74,35.08]
[1755138823847,13.42004459,202.76,202.75,0.72]
[1755138824054,13.42004459,202.76,202.75,20.42489088]
[1755138824660,13.42004459,202.76,202.75,19.70489088]
[1755138824980,13.42004459,202.76,202.75,90.62489088]
[1755138825291,13.42004459,202.76,202.75,125.70489088]
[1755138826557,14.12004459,202.76,202.75,125.70489088]
[1755138827083,14.12004459,202.76,202.75,90.24489088]
[1755138827258,14.12004459,202.76,202.69,0.72]
[1755138827574,13.42004459,202.7,202.69,0.72]
[1755138827777,13.42004459,202.7,202.69,19.70489088]
[1755138828353,13.42004459,202.7,202.69,54.78489088]
[1755138829674,13.42004459,202.7,202.69,35.08]
[1755138829873,14.12004459,202.7,202.69,35.08]
[1755138830467,13.42004459,202.7,202.69,35.08]
[1755138834172,14.12004459,202.7,202.69,35.08]
[1755138834370,14.12004459,202.7,202.69,54.78489088]
[1755138834965,14.12004459,202.7,202.69,125.70489088]
[1755138836678,14.12004459,202.7,202.64,19.70489088]
[1755138836871,13.42004459,202.65,202.64,19.70489088]
[1755138837060,13.42004459,202.65,202.64,20.42489088]
[1755138837665,13.42004459,202.65,202.64,19.70489088]
[1755138837874,13.42004459,202.65,202.64,54.78489088]
[1755138839387,13.42004459,202.65,202.64,19.70489088]
[1755138839687,13.42004459,202.65,202.64,54.78489088]
[1755138840898,8.1930076,202.65,202.64,54.78489088]
[1755138841895,8.1930076,202.65,202.64,55.47489088]
[1755138842578,8.1930076,202.65,202.64,54.78489088]
[1755138842786,8.1930076,202.65,202.5,132.4731]
[1755138842959,0.68,202.65,202.58,0.69]
[1755138843159,8.1930076,202.59,202.58,80.9]
[1755138843401,8.1930076,202.59,202.58,115.98]
[1755138843701,8.1930076,202.59,202.58,116.67]
[1755138843863,3.93331922,202.68,202.6,80.9]
[1755138844192,3.67760721,202.67,202.61,0.69]
[1755138844365,3.67760721,202.66,202.62,35.08]
[1755138844687,3.67760721,202.65,202.63,0.69]
[1755138844869,0.68,202.71,202.64,35.08]
[1755138845193,3.67681902,202.7,202.65,106.0]
[1755138845370,8.1930076,202.66,202.65,187.59]
[1755138845569,11.86982662,202.66,202.65,187.59]
[1755138845780,8.1930076,202.66,202.65,187.59]
[1755138846881,17.11529723,202.66,202.65,186.9]
[1755138847289,17.11529723,202.66,202.65,151.44]
[1755138847899,17.1152412,202.66,202.65,151.44]
[1755138849210,17.1152412,202.66,202.65,115.98]
[1755138851717,3.67622617,202.66,202.65,115.98]
[1755138852001,17.1152412,202.66,202.65,115.98]
[1755138853900,17.11374416,202.66,202.65,115.98]
[1755138855205,17.11374416,202.66,202.65,186.9]
[1755138855406,3.67472913,202.66,202.65,186.9]
[1755138855605,13.43901503,202.66,202.65,187.59]
[1755138855793,17.11374416,202.66,202.65,186.9]
[1755138857981,17.11374416,202.66,202.65,187.59]
[1755138858388,17.11374416,202.66,202.65,186.9]
[1755138859298,17.11374416,202.66,202.65,151.44]
[1755138860687,3.67472913,202.66,202.65,151.44]
[1755138861007,3.67472913,202.68,202.65,151.44]
[1755138861221,3.67472913,202.67,202.65,152.13]
[1755138861512,3.67472913,202.66,202.65,152.13]
[1755138861715,3.67472913,202.7,202.65,152.13]
[1755138862021,4.35472913,202.7,202.65,152.13]
[1755138862316,3.67472913,202.69,202.65,152.13]
[1755138863414,3.67472913,202.68,202.65,152.13]
[1755138863995,13.43901503,202.66,202.65,151.44]
[1755138864314,17.11267519,202.66,202.65,80.9]
[1755138864497,17.11267519,202.66,202.65,115.96]
[1755138865217,17.11267519,202.66,202.65,186.88]
[1755138865621,17.1130571,202.66,202.65,186.88]
[1755138866723,11.86669111,202.66,202.65,186.88]
[1755138869611,8.19264904,202.66,202.65,186.88]
[1755138869797,11.87133264,202.66,202.65,186.88]
[1755138870499,3.6786836,202.66,202.65,186.88]
[1755138870709,3.6786836,202.69,202.65,186.88]
[1755138870918,3.6786836,202.68,202.65,186.88]
[1755138871298,3.6786836,202.67,202.65,186.88]
[1755138871502,12.56133264,202.66,202.56,0.67]
[1755138871709,4.3686836,202.65,202.57,35.46]
[1755138871916,3.6786836,202.64,202.58,35.73]
[1755138872104,3.6786836,202.63,202.58,35.73]
[1755138872308,3.6786836,202.62,202.58,35.73]
[1755138872504,3.6786836,202.61,202.58,35.73]
[1755138872701,3.6786836,202.6,202.58,35.73]
[1755138873021,11.87133264,202.59,202.58,35.06]
[1755138873721,11.87133264,202.59,202.58,35.73]
[1755138873918,11.87133264,202.59,202.58,35.06]
[1755138874522,11.87133264,202.59,202.58,35.73]
[1755138875022,11.87133264,202.59,202.58,106.65]
[1755138875227,11.87133264,202.59,202.58,105.98]
[1755138875400,12.56133264,202.59,202.58,105.98]
[1755138876319,12.56133264,202.59,202.58,70.96]
[1755138876528,12.56133264,202.59,202.53,0.67]
[1755138876711,12.56133264,202.59,202.53,81.57]
[1755138876712,8.19264904,202.54,202.53,81.57]
[1755138877026,11.87133264,202.54,202.51,0.67]
[1755138877240,8.19264904,202.52,202.51,0.67]
[1755138877425,11.87133264,202.52,202.51,0.67]
[1755138877724,11.87133264,202.52,202.51,35.73]
[1755138877906,8.19264904,202.55,202.51,35.73]
[1755138878105,8.19264904,202.55,202.52,0.67]
[1755138878312,8.19264904,202.56,202.53,35.06]
[1755138878517,8.19264904,202.57,202.54,0.67]
[1755138878809,8.19264904,202.58,202.55,35.06]
[1755138878997,3.67967136,202.57,202.56,0.67]
[1755138879202,3.67967136,202.57,202.56,81.57]
[1755138879707,8.19264904,202.58,202.56,81.57]
[1755138879906,8.19264904,202.58,202.57,35.73]
[1755138880214,3.67949163,202.58,202.57,35.73]
[1755138881108,8.19264904,202.6,202.57,35.73]
[1755138881109,11.87214067,202.59,202.57,35.73]
[1755138881307,3.67949163,202.58,202.57,35.06]
[1755138881734,8.19264904,202.61,202.57,35.06]
[1755138882030,3.67933493,202.6,202.58,0.67]
[1755138882203,8.19264904,202.62,202.59,35.06]
[1755138882403,3.67932487,202.61,202.6,0.67]
[1755138883024,3.67932487,202.61,202.6,81.57]
[1755138884908,3.67932487,202.61,202.6,117.05]
[1755138885224,3.67932487,202.61,202.6,152.53]
[1755138885523,11.87197391,202.61,202.6,152.53]
[1755138886208,11.87197391,202.61,202.6,151.86]
[1755138887610,11.87197391,202.61,202.6,70.96]
[1755138888149,11.87197391,202.61,202.6,71.63]
[1755138889809,11.87197391,202.61,202.6,70.96]
[1755138891316,11.87197391,202.61,202.6,35.48]
[1755138892320,12.56229463,202.61,202.59,35.06]
[1755138892526,11.87229463,202.6,202.59,35.06]
[1755138892930,12.56229463,202.6,202.53,0.67]
[1755138893126,8.19264904,202.54,202.53,81.57]
[1755138893429,8.19264904,202.54,202.53,116.63]
[1755138895141,8.19264904,202.54,202.53,187.59]
[1755138895626,8.19264904,202.55,202.53,187.59]
[1755138895827,0.69,202.6,202.53,186.92]
[1755138895828,8.19264904,202.54,202.53,186.92]
[1755138896633,8.19264904,202.54,202.53,187.59]
[1755138898645,8.19264904,202.54,202.53,116.61]
[1755138899026,8.19264904,202.54,202.53,115.94]
[1755138899228,8.19264904,202.54,202.53,116.61]
[1755138900243,8.19264904,202.54,202.53,115.94]
[1755138901245,8.19264904,202.67,202.53,116.66]
[1755138901547,8.19264904,202.55,202.54,0.72]
[1755138901719,8.19264904,202.55,202.54,81.62]
[1755138902242,8.19264904,202.59,202.54,81.62]
[1755138902449,8.19264904,202.59,202.55,35.76]
[1755138902644,8.19264904,202.58,202.56,0.72]
[1755138902831,8.19264904,202.61,202.57,35.04]
[1755138903035,8.19264904,202.62,202.58,0.72]
[1755138903243,4.93197613,202.76,202.58,0.72]
[1755138903244,15.54389788,202.76,202.59,35.04]
[1755138903551,4.37746202,202.75,202.6,0.72]
[1755138903751,8.19264904,202.73,202.61,35.04]
[1755138903926,3.67746202,202.72,202.61,35.04]
[1755138904242,3.67746202,202.72,202.62,0.72]
[1755138904422,0.7,202.75,202.63,35.04]
[1755138904423,8.19264904,202.69,202.63,35.04]
[1755138904624,8.19264904,202.69,202.64,0.72]
[1755138904848,8.19264904,202.69,202.65,35.04]
[1755138905043,8.19264904,202.7,202.66,70.96]
[1755138905248,8.19264904,202.7,202.67,35.76]
[1755138905549,8.19264904,202.68,202.66,35.48]
[1755138905849,8.19264904,202.68,202.67,35.76]
[1755138906229,8.19264904,202.69,202.67,35.76]
[1755138906429,8.19264904,202.69,202.68,0.72]
[1755138906637,11.86570951,202.69,202.68,0.72]
[1755138907239,8.19264904,202.69,202.68,0.72]
[1755138907824,11.86493635,202.69,202.68,0.72]
[1755138908224,11.86408798,202.69,202.68,0.72]
[1755138908835,8.19264904,202.69,202.67,35.04]
[1755138909151,8.19264904,202.69,202.67,116.66]
[1755138909348,8.19264904,202.69,202.68,0.72]
[1755138910554,8.19264904,202.69,202.67,115.94]
[1755138910851,8.19264904,202.68,202.67,115.94]
[1755138911238,0.7,202.72,202.67,115.94]
[1755138911442,8.19264904,202.69,202.67,116.66]
[1755138911829,8.19264904,202.69,202.68,0.72]
[1755138912332,8.19264904,202.69,202.67,115.94]
[1755138912631,8.19264904,202.69,202.67,116.66]
[1755138913750,8.19264904,202.68,202.67,115.94]
[1755138914953,8.19264904,202.68,202.67,186.86]
[1755138916453,8.89264904,202.68,202.67,186.86]
[1755138916628,8.19264904,202.68,202.67,105.96]
[1755138917366,0.7,202.7,202.67,105.96]
[1755138917531,8.19264904,202.68,202.67,105.96]
[1755138918045,2.4948865,202.78,202.67,105.96]
[1755138918227,8.19264904,202.68,202.67,105.96]
[1755138918426,8.19264904,202.68,202.67,35.46]
[1755138918732,8.19264904,202.68,202.67,70.48]
[1755138920441,8.19264904,202.68,202.65,81.62]
[1755138920752,8.19264904,202.66,202.65,81.62]
[1755138921059,0.7,202.71,202.65,81.62]
[1755138921252,8.19264904,202.66,202.65,81.62]
[1755138921860,8.19264904,202.66,202.65,116.64]
[1755138922157,8.19264904,202.68,202.65,116.64]
[1755138922461,8.19264904,202.69,202.66,0.72]
[1755138922749,8.19264904,202.69,202.67,35.02]
[1755138922952,8.19264904,202.72,202.68,0.72]
[1755138923251,8.19264904,202.73,202.69,35.02]
[1755138923551,8.19264904,202.74,202.7,0.72]
[1755138923749,4.00957496,202.8,202.71,35.02]
[1755138923949,8.19264904,202.79,202.72,0.72]
[1755138924142,8.19264904,202.79,202.73,35.02]
[1755138924339,8.19264904,202.79,202.74,0.72]
[1755138924658,0.7,202.82,202.75,35.02]
[1755138924830,8.19264904,202.79,202.76,0.72]
[1755138925158,8.19264904,202.79,202.77,106.66]
[1755138925541,8.19264904,202.78,202.77,105.94]
[1755138926727,8.19264904,202.78,202.77,70.48]
[1755138927333,8.19264904,202.78,202.77,35.02]
[1755138929131,8.19264904,202.78,202.77,115.92]
[1755138931255,8.87264904,202.78,202.77,80.9]
[1755138931549,8.19264904,202.82,202.77,116.59]
[1755138931750,0.68,202.85,202.78,0.69]
[1755138931956,3.65380927,202.84,202.79,35.0]
[1755138932139,3.65380927,202.84,202.79,35.69]
[1755138932344,8.19264904,202.82,202.79,35.69]
[1755138932861,4.63844533,202.85,202.79,35.69]
[1755138933040,3.65239336,202.84,202.79,35.69]
[1755138933237,3.65239336,202.84,202.8,0.69]
[1755138933442,0.68,202.89,202.81,35.0]
[1755138933656,8.19264904,202.86,202.82,0.69]
[1755138933850,8.19264904,202.86,202.83,35.0]
[1755138934055,0.68,202.89,202.84,0.69]
[1755138934368,3.65082979,202.88,202.85,35.0]
[1755138934542,8.19264904,202.86,202.85,35.0]
[1755138934854,8.19264904,202.86,202.85,115.9]
[1755138935063,8.19264904,202.86,202.85,186.78]
[1755138935266,8.87264904,202.86,202.85,70.88]
[1755138935448,12.52061328,202.86,202.85,105.88]
[1755138935643,12.52072186,202.86,202.85,105.88]